bitfinex/quotes_BTCUSD_20240918
["timestamp","ask_amount","ask_price","bid_price","bid_amount"]
[1726668389202,0.1,59531.0,59523.0,0.336001]
[1726668389412,0.167982,59530.0,59525.0,0.167996]
[1726668389627,0.26998,59531.0,59525.0,0.167996]
[1726668389838,0.1,59531.0,59526.0,0.167992]
[1726668390062,0.1,59531.0,59527.0,0.16799]
[1726668390299,0.1,59531.0,59525.0,0.33599]
[1726668390518,0.1,59531.0,59527.0,0.16799]
[1726668391005,0.167985,59529.0,59521.0,0.336013]
[1726668391225,0.167996,59525.0,59518.0,0.336029]
[1726668391494,0.168004,59523.0,59509.0,0.43608]
[1726668391715,0.00363603,59522.0,59514.0,0.168025]
[1726668391975,0.00363603,59522.0,59511.0,0.168034]
[1726668392194,0.023,59528.0,59508.0,0.1304]
[1726668392195,0.168009,59521.0,59516.0,0.168021]
[1726668392413,0.16802,59517.0,59508.0,0.1304]
[1726668392655,0.358978,59528.0,59508.0,0.1304]
[1726668392890,0.336014,59522.0,59512.0,0.336063]
[1726668393115,0.16305367,59527.0,59509.0,0.3338231]
[1726668393334,0.001,59522.0,59521.0,0.168007]
[1726668393562,0.1,59531.0,59514.0,0.2338231]
[1726668394496,0.335989,59526.0,59508.0,0.1304]
[1726668394710,0.335995,59525.0,59516.0,0.16802]
[1726668394901,0.168008,59521.0,59517.0,0.168018]
[1726668395146,0.168011,59520.0,59514.0,0.336055]
[1726668395436,0.16305367,59526.0,59508.0,0.1304]
[1726668395437,0.168001,59524.0,59519.0,0.168013]
[1726668395657,0.168001,59524.0,59516.0,0.168021]
[1726668395658,0.168011,59520.0,59516.0,0.168021]
[1726668395874,0.168008,59521.0,59517.0,0.168017]
[1726668396108,0.505017,59522.0,59521.0,0.008]
[1726668396334,0.168012,59520.0,59515.0,0.168022]
[1726668396548,0.168008,59521.0,59516.0,0.16802]
[1726668396785,0.168008,59521.0,59519.0,0.003]
[1726668397027,0.168008,59521.0,59513.0,0.33606]
[1726668397028,0.16305367,59526.0,59518.0,0.336032]
[1726668397249,0.335987,59526.0,59520.0,0.168009]
[1726668397481,0.001,59522.0,59521.0,0.176007]
[1726668397706,0.168006,59522.0,59518.0,0.168015]
[1726668397960,0.335989,59526.0,59516.0,0.336039]
[1726668398183,0.335983,59527.0,59519.0,0.005]
[1726668398403,0.16305367,59526.0,59519.0,0.005]
[1726668398851,0.16305367,59526.0,59519.0,0.341024]
[1726668399067,0.335971,59529.0,59519.0,0.341024]
[1726668399280,0.1,59531.0,59521.0,0.336014]
[1726668399509,0.1,59531.0,59522.0,0.33936601]
[1726668399738,0.1,59531.0,59530.0,0.503947]
[1726668399985,0.1,59531.0,59530.0,1.33893067]
[1726668400215,0.25727405,59545.0,59534.0,0.8713561]
[1726668400216,0.0052558,59545.0,59534.0,0.8713561]
[1726668400457,0.0052558,59545.0,59544.0,0.267943]
[1726668400684,0.0052558,59545.0,59544.0,1.50991177]
[1726668400907,0.001642,59547.0,59546.0,0.331557]
[1726668400908,0.001542,59547.0,59546.0,0.331557]
[1726668401127,0.001542,59547.0,59546.0,0.83248467]
[1726668401360,0.001542,59547.0,59546.0,1.42962967]
[1726668401649,0.001542,59547.0,59546.0,0.803469]
[1726668401894,0.001542,59547.0,59545.0,0.167939]
[1726668402177,0.001,59545.0,59544.0,0.848715]
[1726668402430,0.001,59545.0,59544.0,0.512829]
[1726668402933,0.50482,59545.0,59544.0,0.009]
[1726668403167,0.001,59545.0,59544.0,0.009]
[1726668403426,0.167937,59546.0,59532.0,0.00335889]
[1726668403667,0.169477,59547.0,59536.0,0.335928]
[1726668403903,0.169477,59547.0,59530.0,0.2338231]
[1726668403904,0.002542,59547.0,59546.0,0.181937]
[1726668404174,0.002542,59547.0,59540.0,0.5697281]
[1726668404175,0.001542,59547.0,59541.0,0.335901]
[1726668404408,0.001542,59547.0,59541.0,0.335902]
[1726668404664,0.001,59545.0,59544.0,0.008]
[1726668404901,0.335875,59546.0,59539.0,0.167956]
[1726668405139,0.338411,59547.0,59546.0,0.006]
[1726668405396,0.842214,59547.0,59546.0,0.006]
[1726668405639,0.506345,59547.0,59546.0,0.006]
[1726668406110,0.002542,59547.0,59546.0,0.173937]
[1726668406343,0.002542,59547.0,59546.0,0.006]
[1726668406832,0.167938,59546.0,59541.0,0.16795]
[1726668407069,0.167946,59543.0,59539.0,0.167956]
[1726668407324,0.002542,59547.0,59541.0,0.007]
[1726668407597,0.001542,59547.0,59546.0,0.167937]
[1726668407873,0.002542,59547.0,59546.0,0.007]
[1726668408120,0.002542,59547.0,59546.0,0.174937]
[1726668408367,0.001542,59547.0,59546.0,0.503811]
[1726668408877,0.001542,59547.0,59544.0,0.335885]
[1726668408878,0.001542,59547.0,59544.0,0.167941]
[1726668409410,0.001542,59547.0,59544.0,0.167942]
[1726668409657,0.001542,59547.0,59542.0,0.335896]
[1726668410138,0.001542,59547.0,59546.0,0.167937]
[1726668410361,0.001542,59547.0,59546.0,0.503811]
[1726668410623,0.002542,59547.0,59546.0,0.512811]
[1726668410847,0.001542,59547.0,59546.0,0.839685]
[1726668411095,0.001644,59554.0,59553.0,0.839587]
[1726668411341,0.001644,59554.0,59553.0,1.33847567]
[1726668411586,0.001644,59554.0,59553.0,2.07990067]
[1726668411810,0.0077737,59573.0,59554.0,0.13362]
[1726668412034,0.335745,59569.0,59554.0,0.26305367]
[1726668412253,0.1679,59559.0,59554.0,0.167913]
[1726668412473,0.0077737,59573.0,59549.0,0.03362]
[1726668412474,0.167884,59565.0,59549.0,0.03362]
[1726668412704,0.0077737,59573.0,59555.0,0.16305367]
[1726668412928,0.335745,59569.0,59550.0,0.16305367]
[1726668413147,0.335735,59571.0,59550.0,0.16305367]
[1726668413148,0.16789,59563.0,59556.0,0.335816]
[1726668413371,0.335768,59565.0,59560.0,0.167896]
[1726668413591,0.335768,59565.0,59561.0,0.167893]
[1726668413592,0.167884,59565.0,59561.0,0.167893]
[1726668413808,0.00363603,59564.0,59553.0,0.012]
[1726668414039,0.167913,59555.0,59551.0,0.167921]
[1726668414268,0.167908,59557.0,59543.0,0.13]
[1726668414494,0.16305367,59567.0,59552.0,0.335839]
[1726668414710,0.16305367,59567.0,59551.0,0.335844]
[1726668414711,0.167907,59557.0,59551.0,0.335844]
[1726668414929,0.167913,59555.0,59551.0,0.167922]
[1726668415158,0.33583,59554.0,59548.0,0.1]
[1726668415393,0.33583,59554.0,59545.0,0.335874]
[1726668415394,0.16793,59549.0,59546.0,0.000821]
[1726668415639,0.335809,59558.0,59549.0,0.335855]
[1726668415865,0.16305367,59560.0,59546.0,0.000821]
[1726668416097,0.167917,59554.0,59546.0,0.000821]
[1726668416329,0.16305367,59560.0,59546.0,0.000821]
[1726668416330,0.16305367,59560.0,59547.0,0.167933]
[1726668416567,0.16305367,59560.0,59546.0,0.000821]
[1726668416568,0.335835,59554.0,59546.0,0.000821]
[1726668416837,0.335806,59559.0,59546.0,0.000821]
[1726668417082,0.16305367,59560.0,59546.0,0.000821]
[1726668417309,0.141642,59564.0,59546.0,0.000821]
[1726668417310,0.1666897,59558.0,59546.0,0.000821]
[1726668417542,0.1666897,59558.0,59550.0,0.167923]
[1726668417543,0.167915,59554.0,59550.0,0.167923]
[1726668417773,0.16305367,59558.0,59548.0,0.16793]
[1726668417997,0.167919,59553.0,59548.0,0.167929]
[1726668418224,0.167926,59550.0,59546.0,0.171756]
[1726668418441,0.16305367,59558.0,59546.0,0.003821]
[1726668418670,0.167934,59547.0,59546.0,0.003821]
[1726668418920,0.16305367,59558.0,59546.0,0.000821]
[1726668418921,0.335851,59551.0,59546.0,0.000821]
[1726668419200,0.335851,59551.0,59546.0,0.168755]
[1726668419442,0.16305367,59558.0,59546.0,0.000821]
[1726668419443,0.167934,59547.0,59546.0,0.000821]
[1726668419705,1.175541,59547.0,59546.0,0.000821]
[1726668419948,0.16305367,59558.0,59546.0,0.000821]
[1726668419949,0.335835,59553.0,59547.0,0.167933]
[1726668420210,0.1,59562.0,59546.0,0.000821]
[1726668420456,0.335851,59551.0,59546.0,0.000821]
[1726668420701,0.3611928,59555.0,59546.0,0.000821]
[1726668420702,0.167934,59547.0,59546.0,0.000821]
[1726668420981,0.335846,59552.0,59546.0,0.000821]
[1726668421211,0.167934,59547.0,59546.0,0.000821]
[1726668421920,0.839672,59547.0,59546.0,0.000821]
[1726668422159,1.175541,59547.0,59546.0,0.000821]
[1726668422913,0.335814,59557.0,59546.0,0.000821]
[1726668423271,0.365754,59568.0,59546.0,0.000821]
[1726668423272,0.167895,59562.0,59546.0,0.16387467]
[1726668423275,0.337416,59564.0,59546.0,0.16387467]
[1726668423276,0.167891,59563.0,59556.0,0.167908]
[1726668423503,0.001542,59564.0,59558.0,0.335806]
[1726668423935,0.001542,59564.0,59563.0,0.167889]
[1726668424394,0.001542,59564.0,59563.0,0.77007813]
[1726668424618,0.001542,59564.0,59563.0,0.22427425]
[1726668424823,0.001542,59564.0,59563.0,0.07496551]
[1726668425021,0.001542,59564.0,59562.0,0.04997775]
[1726668425226,0.503667,59563.0,59562.0,0.04997775]
[1726668425606,0.503667,59563.0,59558.0,0.04997775]
[1726668425607,0.167895,59561.0,59558.0,0.04997775]
[1726668425859,0.001542,59564.0,59557.0,0.04997775]
[1726668426090,0.001542,59564.0,59556.0,0.41077951]
[1726668426091,0.001542,59564.0,59563.0,0.167889]
[1726668426305,0.167892,59562.0,59560.0,0.04997775]
[1726668426528,0.001542,59564.0,59560.0,0.04997775]
[1726668426807,0.001542,59564.0,59559.0,0.04997775]
[1726668427017,0.001542,59564.0,59560.0,0.04997775]
[1726668427233,0.001542,59564.0,59559.0,0.21787675]
[1726668427715,0.505201,59564.0,59563.0,0.008]
[1726668427957,0.167914,59554.0,59553.0,0.04997775]
[1726668428173,0.36105794,59557.0,59548.0,0.04997775]
[1726668428401,0.335834,59554.0,59546.0,0.05079875]
[1726668428681,0.167934,59547.0,59546.0,0.000821]
[1726668429197,0.839672,59547.0,59546.0,0.000821]
[1726668429437,1.69965261,59547.0,59546.0,0.000821]
[1726668429888,1.72265261,59547.0,59546.0,0.000821]
[1726668430803,1.72265261,59547.0,59546.0,0.008821]
[1726668431003,1.38678361,59547.0,59546.0,0.008821]
[1726668431229,1.72265261,59547.0,59546.0,0.000821]
[1726668431663,1.38678361,59547.0,59546.0,0.000821]
[1726668431892,1.72265261,59547.0,59546.0,0.000821]
[1726668432132,1.88755261,59547.0,59546.0,0.000821]
[1726668432802,2.22342161,59547.0,59546.0,0.000821]
[1726668433261,2.22342161,59547.0,59522.0,0.07496551]
[1726668433262,0.002,59542.0,59522.0,0.04997775]
[1726668433533,0.167993,59526.0,59525.0,0.25183208]
[1726668433754,0.336004,59523.0,59520.0,0.04997775]
[1726668434004,0.336004,59523.0,59519.0,0.000821]
[1726668434224,0.69703594,59528.0,59519.0,0.000821]
[1726668434225,0.16801,59520.0,59519.0,0.000821]
[1726668434518,0.504031,59520.0,59519.0,0.000821]
[1726668434755,0.840052,59520.0,59519.0,0.000821]
[1726668435471,1.33912667,59520.0,59519.0,0.000821]
[1726668435688,1.00310567,59520.0,59519.0,0.000821]
[1726668435916,1.00310567,59520.0,59519.0,0.006821]
[1726668436414,0.36105794,59528.0,59519.0,0.006821]
[1726668436649,0.16801,59520.0,59519.0,0.006821]
[1726668437094,0.504031,59520.0,59519.0,0.006821]
[1726668438209,0.16801,59520.0,59519.0,0.012821]
[1726668438444,0.16801,59520.0,59519.0,0.000821]
[1726668438666,0.167998,59525.0,59521.0,0.168006]
[1726668438886,0.502356,59532.0,59519.0,0.00990532]
[1726668438887,0.1664,59532.0,59519.0,0.00990532]
[1726668439107,0.6016,59535.0,59523.0,0.336]
[1726668439108,0.466,59535.0,59523.0,0.336]
[1726668439342,0.466,59535.0,59531.0,0.167977]
[1726668439343,0.62905367,59535.0,59531.0,0.167977]
[1726668439566,0.62905367,59535.0,59519.0,0.000821]
[1726668439785,0.1712,59542.0,59520.0,0.16641348]
[1726668439786,0.6372,59542.0,59520.0,0.16641348]
[1726668440052,0.6372,59542.0,59519.0,0.000821]
[1726668440053,1.00791211,59539.0,59519.0,0.000821]
[1726668440272,0.6372,59542.0,59519.0,0.000821]
[1726668440273,0.335947,59534.0,59519.0,0.000821]
[1726668440496,0.167985,59529.0,59525.0,0.167994]
[1726668440719,0.16305367,59538.0,59523.0,0.336003]
[1726668440942,0.167986,59529.0,59525.0,0.167996]
[1726668441168,0.167985,59529.0,59521.0,0.33601]
[1726668441406,0.335955,59532.0,59526.0,0.167992]
[1726668441643,0.335983,59527.0,59519.0,0.001821]
[1726668441864,0.335999,59524.0,59519.0,0.000821]
[1726668442085,0.16305367,59527.0,59519.0,0.000821]
[1726668442086,0.168009,59521.0,59519.0,0.000821]
[1726668442323,0.336003,59524.0,59519.0,0.000821]
[1726668442566,0.33104467,59527.0,59519.0,0.000821]
[1726668442777,0.335993,59526.0,59519.0,0.000821]
[1726668442990,0.168002,59523.0,59519.0,0.168833]
[1726668443210,0.504031,59520.0,59519.0,0.000821]
[1726668443426,0.66708467,59520.0,59519.0,0.000821]
[1726668443952,0.335995,59525.0,59519.0,0.000821]
[1726668444170,0.00363603,59524.0,59519.0,0.004821]
[1726668444401,0.16801,59520.0,59519.0,0.000821]
[1726668444671,0.336011,59522.0,59519.0,0.000821]
[1726668444887,0.16801,59520.0,59519.0,0.006821]
[1726668445105,0.504031,59520.0,59519.0,0.000821]
[1726668445762,1.00310567,59520.0,59519.0,0.000821]
[1726668446006,1.00310567,59520.0,59519.0,0.002821]
[1726668448062,1.00310567,59520.0,59519.0,0.000821]
[1726668448486,1.00310567,59520.0,59519.0,0.002821]
[1726668448714,1.00310567,59520.0,59519.0,0.000821]
[1726668448943,1.31770567,59520.0,59519.0,0.000821]
[1726668449164,1.65372667,59520.0,59519.0,0.000821]
[1726668449391,1.75372667,59520.0,59519.0,0.000821]
[1726668449607,0.840335,59500.0,59497.0,0.0024702]
[1726668449828,1.176469,59500.0,59497.0,0.0024702]
[1726668450283,1.36252267,59500.0,59497.0,0.0024702]
[1726668451379,1.02638867,59500.0,59497.0,0.0024702]
[1726668451625,0.840335,59500.0,59497.0,0.0024702]
[1726668452059,0.504201,59500.0,59497.0,0.0024702]
[1726668452270,0.504201,59500.0,59499.0,0.0249]
[1726668453164,0.03,59514.0,59499.0,0.0249]
[1726668453165,0.023,59511.0,59499.0,0.0249]
[1726668453381,0.168062,59502.0,59499.0,0.0249]
[1726668453600,0.168067,59500.0,59499.0,0.0249]
[1726668453815,0.504201,59500.0,59499.0,0.0249]
[1726668454031,0.336106,59505.0,59499.0,0.0249]
[1726668454282,0.504201,59500.0,59499.0,0.025721]
[1726668454928,0.504201,59500.0,59499.0,0.023721]
[1726668455152,0.840335,59500.0,59499.0,0.023721]
[1726668455649,1.36252267,59500.0,59499.0,0.023721]
[1726668456093,2.10835667,59500.0,59499.0,0.025721]
[1726668456319,2.13835667,59500.0,59499.0,0.025721]
[1726668456534,0.366162,59495.0,59494.0,0.00053]
[1726668456773,1.49262067,59495.0,59494.0,0.00053]
[1726668457000,1.82878267,59495.0,59494.0,0.00053]
[1726668457225,2.16494467,59495.0,59494.0,0.00053]
[1726668457436,1.85515383,59495.0,59494.0,0.00053]
[1726668458334,1.82515383,59495.0,59494.0,0.00053]
[1726668458800,1.48899183,59495.0,59494.0,0.00053]
[1726668459315,1.15282983,59495.0,59494.0,0.00053]
[1726668459553,0.71666783,59495.0,59494.0,0.00053]
[1726668459805,0.33313467,59495.0,59494.0,0.00153]
[1726668460039,0.66729667,59495.0,59494.0,0.00053]
[1726668460278,1.00345867,59495.0,59494.0,0.00053]
[1726668460540,1.00745867,59495.0,59494.0,0.00153]
[1726668460776,1.00345867,59495.0,59494.0,0.00053]
[1726668461479,0.168093,59491.0,59487.0,0.168103]
[1726668462192,0.336187,59491.0,59486.0,0.000151]
[1726668462428,0.168092,59491.0,59486.0,0.000151]
[1726668462657,0.168092,59491.0,59487.0,0.168102]
[1726668463134,0.40272775,59488.0,59487.0,0.001]
[1726668463391,0.40272775,59488.0,59486.0,0.000151]
[1726668463392,0.168103,59487.0,59486.0,0.000151]
[1726668463629,0.23462675,59498.0,59486.0,0.000151]
[1726668463863,0.168103,59487.0,59486.0,0.001151]
[1726668464105,0.18605367,59497.0,59486.0,0.000151]
[1726668464380,0.504264,59493.0,59487.0,0.168101]
[1726668464643,0.168091,59492.0,59488.0,0.1681]
[1726668464891,0.168085,59494.0,59489.0,0.168096]
[1726668465140,0.336131,59501.0,59486.0,0.336359]
[1726668465141,0.336124,59502.0,59486.0,0.000151]
[1726668465403,0.336124,59502.0,59494.0,0.168082]
[1726668465404,0.168073,59498.0,59494.0,0.168082]
[1726668465644,0.1,59507.0,59487.0,0.001]
[1726668465645,0.002,59488.0,59487.0,0.001]
[1726668465882,0.002,59488.0,59487.0,0.50867161]
[1726668466121,0.336126,59502.0,59494.0,0.168082]
[1726668466360,0.16305367,59506.0,59486.0,0.000151]
[1726668466361,0.336137,59500.0,59486.0,0.000151]
[1726668466591,0.336137,59500.0,59489.0,0.009]
[1726668466829,0.1,59505.0,59486.0,0.000151]
[1726668467110,0.168077,59497.0,59493.0,0.168086]
[1726668467337,0.336149,59498.0,59492.0,0.168089]
[1726668467338,0.16808,59496.0,59492.0,0.168089]
[1726668467557,0.336124,59502.0,59492.0,0.336179]
[1726668467777,0.466,59510.0,59493.0,0.00336161]
[1726668467994,0.466,59510.0,59497.0,0.168074]
[1726668467995,0.168065,59501.0,59497.0,0.168074]
[1726668468228,0.168061,59502.0,59498.0,0.168072]
[1726668468471,0.336106,59505.0,59496.0,0.336153]
[1726668468688,0.168067,59500.0,59496.0,0.168078]
[1726668468917,0.00363603,59503.0,59487.0,0.1622]
[1726668469146,0.16305367,59509.0,59490.0,0.168093]
[1726668469147,0.168084,59494.0,59490.0,0.168093]
[1726668469367,0.168084,59494.0,59490.0,0.168094]
[1726668469835,0.336141,59499.0,59490.0,0.336189]
[1726668469836,0.168074,59498.0,59490.0,0.336189]
[1726668470062,0.168074,59498.0,59494.0,0.168083]
[1726668471442,0.168074,59498.0,59492.0,0.336176]
[1726668471443,0.16807,59499.0,59495.0,0.168079]
[1726668471662,0.168073,59498.0,59495.0,0.168079]
[1726668471881,0.168073,59498.0,59494.0,0.168084]
[1726668472141,0.168076,59497.0,59492.0,0.336176]
[1726668472353,0.336128,59502.0,59490.0,0.336189]
[1726668472354,0.336147,59498.0,59491.0,0.168091]
[1726668472587,0.168079,59496.0,59492.0,0.168089]
[1726668472807,0.16809,59492.0,59488.0,0.168099]
[1726668473018,0.3591,59506.0,59486.0,0.000151]
[1726668473019,0.168082,59495.0,59486.0,0.000151]
[1726668473236,0.336148,59498.0,59486.0,0.000151]
[1726668473456,0.168083,59495.0,59492.0,0.004]
[1726668473670,0.168084,59494.0,59492.0,0.004]
[1726668473887,0.336148,59498.0,59494.0,0.168083]
[1726668473888,0.168075,59498.0,59494.0,0.168083]
[1726668474118,0.336132,59501.0,59496.0,0.168077]
[1726668474345,0.336138,59500.0,59495.0,0.16808]
[1726668474576,0.168076,59497.0,59494.0,0.168084]
[1726668474858,0.359113,59504.0,59486.0,0.05000809]
[1726668475088,0.1896897,59503.0,59486.0,0.000151]
[1726668475315,0.168084,59494.0,59487.0,0.38605909]
[1726668475542,0.168084,59494.0,59490.0,0.168093]
[1726668475773,0.18605367,59503.0,59486.0,0.05000809]
[1726668475774,0.168092,59492.0,59486.0,0.05000809]
[1726668476021,0.168093,59491.0,59488.0,0.1731]
[1726668476248,0.168083,59495.0,59491.0,0.168092]
[1726668476477,0.168084,59494.0,59491.0,0.168092]
[1726668476699,0.168084,59494.0,59490.0,0.168095]
[1726668476932,0.336161,59496.0,59491.0,0.168091]
[1726668477428,0.336155,59497.0,59491.0,0.336182]
[1726668477429,0.168076,59497.0,59491.0,0.336182]
[1726668477646,0.18605367,59503.0,59488.0,0.05485709]
[1726668477647,0.336121,59503.0,59494.0,0.336167]
[1726668477897,0.336121,59503.0,59490.0,0.336189]
[1726668477898,0.336121,59503.0,59495.0,0.672322]
[1726668478143,0.336123,59502.0,59490.0,0.05485709]
[1726668478379,0.168073,59498.0,59494.0,0.168082]
[1726668479034,0.168069,59500.0,59497.0,0.168075]
[1726668479250,0.168069,59500.0,59496.0,0.168078]
[1726668479466,0.168071,59499.0,59494.0,0.336166]
[1726668479704,0.16807,59499.0,59494.0,0.336166]
[1726668479957,0.16807,59499.0,59496.0,0.168077]
[1726668480179,0.336124,59502.0,59494.0,0.168082]
[1726668480399,0.023,59510.0,59495.0,0.336162]
[1726668480620,0.168084,59494.0,59493.0,0.0501804]
[1726668480856,0.168089,59492.0,59491.0,0.0501804]
[1726668481097,0.168083,59495.0,59491.0,0.21827199]
[1726668481355,0.23462675,59508.0,59491.0,0.05018121]
[1726668481356,0.504268,59492.0,59491.0,0.05018121]
[1726668481579,0.504277,59491.0,59490.0,0.05018121]
[1726668481811,0.84049,59489.0,59488.0,0.00082]
[1726668482041,1.36273967,59489.0,59488.0,0.00082]
[1726668483392,1.02654367,59489.0,59488.0,0.00082]
[1726668483674,0.168098,59489.0,59488.0,0.00082]
[1726668483906,0.336181,59492.0,59488.0,0.00082]
[1726668484127,0.168098,59489.0,59488.0,0.00082]
[1726668484354,0.1309,59501.0,59488.0,0.00082]
[1726668484355,0.23462675,59511.0,59488.0,0.00082]
[1726668484577,0.168095,59490.0,59488.0,0.00082]
[1726668484813,0.168094,59491.0,59488.0,0.00082]
[1726668485297,0.168098,59489.0,59488.0,0.00082]
[1726668485747,0.504294,59489.0,59488.0,0.00082]
[1726668486248,0.84049,59489.0,59488.0,0.00082]
[1726668486471,1.176686,59489.0,59488.0,0.00082]
[1726668486684,1.177686,59489.0,59488.0,0.00182]
[1726668487119,0.84049,59489.0,59488.0,0.00082]
[1726668487844,1.176686,59489.0,59488.0,0.00082]
[1726668488091,1.33973967,59489.0,59488.0,0.00082]
[1726668488593,1.00354367,59489.0,59488.0,0.00082]
[1726668488837,1.33973967,59489.0,59488.0,0.00082]
[1726668490313,1.69893567,59489.0,59488.0,0.00082]
[1726668490588,1.36273967,59489.0,59488.0,0.00082]
[1726668491070,1.69893567,59489.0,59488.0,0.00082]
[1726668491309,2.42933167,59489.0,59488.0,0.00082]
[1726668491560,2.09113567,59489.0,59488.0,0.00082]
[1726668492018,1.75493967,59489.0,59488.0,0.00082]
[1726668492488,1.36373967,59489.0,59488.0,0.00082]
[1726668492777,1.00454367,59489.0,59488.0,0.00082]
[1726668493023,0.00264,59489.0,59488.0,0.00082]
[1726668493536,0.00264,59489.0,59488.0,0.168921]
[1726668493755,0.00264,59489.0,59488.0,0.505123]
[1726668494031,0.00164,59489.0,59488.0,0.841325]
[1726668494220,0.00264,59489.0,59488.0,0.506123]
[1726668494436,0.00264,59489.0,59488.0,0.22022473]
[1726668494648,0.170738,59489.0,59488.0,0.00182]
[1726668494868,0.506934,59489.0,59488.0,0.00182]
[1726668495100,0.506934,59489.0,59488.0,0.00882]
[1726668495551,0.84313,59489.0,59488.0,0.00882]
[1726668495989,0.170738,59489.0,59488.0,0.00882]
[1726668496210,0.00164,59489.0,59488.0,0.168921]
[1726668496442,0.00164,59489.0,59488.0,0.841325]
[1726668496652,0.159722,59495.0,59490.0,0.168094]
[1726668496866,0.168084,59494.0,59488.0,0.38736159]
[1726668497085,0.336147,59498.0,59490.0,0.168094]
[1726668497313,0.336147,59498.0,59489.0,0.05033959]
[1726668497556,0.336147,59498.0,59491.0,0.168091]
[1726668497816,0.168095,59490.0,59489.0,0.05033959]
[1726668498058,0.504294,59489.0,59488.0,0.00582]
[1726668498316,0.84049,59489.0,59488.0,0.00082]
[1726668499661,1.176686,59489.0,59488.0,0.00082]
[1726668500670,1.33973967,59489.0,59488.0,0.00082]
[1726668501108,1.36273967,59489.0,59488.0,0.00082]
[1726668501548,1.36273967,59489.0,59488.0,0.00482]
[1726668502008,1.36273967,59489.0,59488.0,0.00082]
[1726668502251,1.36273967,59489.0,59488.0,0.00382]
[1726668503434,1.33973967,59489.0,59488.0,0.00382]
[1726668503653,0.84049,59489.0,59488.0,0.00382]
[1726668506655,0.504294,59489.0,59488.0,0.00382]
[1726668506948,0.84049,59489.0,59488.0,0.00382]
[1726668507620,0.168098,59489.0,59488.0,0.00382]
[1726668507845,0.336185,59491.0,59488.0,0.00382]
[1726668508074,0.00164,59495.0,59488.0,0.00382]
[1726668508339,0.00164,59495.0,59490.0,0.33619]
[1726668508565,0.00164,59495.0,59488.0,0.00382]
[1726668508566,0.169721,59495.0,59491.0,0.168091]
[1726668508849,0.00164,59495.0,59489.0,0.38653259]
[1726668509078,0.00164,59495.0,59494.0,0.168084]
[1726668509302,0.00164,59495.0,59490.0,0.05033959]
[1726668509303,0.336179,59492.0,59490.0,0.05033959]
[1726668509536,0.336179,59492.0,59488.0,0.00082]
[1726668509758,0.00264,59495.0,59488.0,0.00082]
[1726668509759,0.00164,59495.0,59488.0,0.00082]
[1726668509974,0.00164,59495.0,59490.0,0.168094]
[1726668509975,0.168085,59494.0,59490.0,0.168094]
[1726668510201,0.00164,59495.0,59491.0,0.336182]
[1726668510446,0.00164,59495.0,59494.0,0.504252]
[1726668510694,0.00164,59495.0,59494.0,1.05383856]
[1726668511159,0.00164,59495.0,59494.0,0.71767056]
[1726668511408,0.00164,59495.0,59494.0,1.05383856]
[1726668512312,0.00164,59495.0,59494.0,0.55461689]
[1726668513177,0.00164,59495.0,59494.0,0.56761689]
[1726668513448,0.00164,59495.0,59494.0,0.55461689]
[1726668513668,0.00164,59495.0,59494.0,0.89078489]
[1726668513882,0.00164,59495.0,59494.0,0.55461689]
[1726668514101,0.00164,59495.0,59494.0,0.55460351]
[1726668514322,0.00164,59495.0,59494.0,0.89077151]
[1726668514563,0.00164,59495.0,59494.0,0.55460351]
[1726668515012,0.00164,59495.0,59494.0,0.56360351]
[1726668515229,0.00164,59495.0,59494.0,0.55460351]
[1726668515450,0.00164,59495.0,59494.0,0.89077151]
[1726668515678,0.00164,59495.0,59494.0,0.90377151]
[1726668515945,0.00164,59495.0,59494.0,0.89077151]
[1726668516370,0.00164,59495.0,59494.0,0.90177151]
[1726668516810,0.00164,59495.0,59494.0,2.25668767]
[1726668517031,0.00164,59495.0,59494.0,1.98768622]
[1726668517264,0.00164,59495.0,59494.0,2.16379967]
[1726668517491,0.00164,59495.0,59494.0,2.19379967]
[1726668517982,0.00154,59495.0,59494.0,2.19379967]
[1726668518471,0.466,59516.0,59515.0,0.504073]
[1726668518702,0.001642,59519.0,59518.0,0.84008]
[1726668518703,0.001542,59519.0,59518.0,0.84008]
[1726668519208,0.335976,59528.0,59521.0,0.336014]
[1726668519717,0.335949,59533.0,59518.0,0.336031]
[1726668519931,0.40152675,59535.0,59520.0,0.16801]
[1726668519932,0.167999,59524.0,59520.0,0.16801]
[1726668520152,0.167996,59525.0,59520.0,0.16801]
[1726668520636,0.33599,59526.0,59511.0,0.05029375]
[1726668520637,0.335999,59524.0,59511.0,0.05029375]
[1726668520903,0.168012,59520.0,59516.0,0.16802]
[1726668521150,0.335999,59524.0,59519.0,0.168012]
[1726668521151,0.168003,59523.0,59519.0,0.168012]
[1726668521383,0.335989,59526.0,59520.0,0.168009]
[1726668521633,0.167991,59527.0,59522.0,0.168002]
[1726668521892,0.167991,59527.0,59518.0,0.336027]
[1726668521893,0.16798,59531.0,59527.0,0.16799]
[1726668522172,0.04010555,59548.0,59518.0,0.00336004]
[1726668522173,0.167961,59538.0,59534.0,0.167971]
[1726668522459,0.335968,59530.0,59517.0,0.1]
[1726668522658,0.16798,59531.0,59527.0,0.16799]
[1726668522893,0.503933,59532.0,59527.0,0.167989]
[1726668523143,0.167979,59532.0,59528.0,0.167987]
[1726668523370,0.49898967,59536.0,59517.0,0.26305367]
[1726668523371,0.335943,59534.0,59527.0,0.167988]
[1726668523601,0.16305367,59536.0,59523.0,0.336]
[1726668523602,0.335961,59531.0,59523.0,0.336]
[1726668523843,0.16799,59528.0,59524.0,0.167997]
[1726668524098,0.16799,59528.0,59519.0,0.336022]
[1726668524099,0.335961,59531.0,59520.0,0.168008]